Cogmind - Beta 16.1 @@@ ROGUE MODE // 2026.04.21 @ 10:36:34 Player: Braundy Result: Self-destructed Performance ------------- Evolutions (2) 1000 Regions Visited (3) 600 Robots Destroyed (53) 265 Value Destroyed (986) 986 Prototype IDs (6) 120 Alien Tech Used (0) 0 Bonus (0) 0 TOTAL SCORE: 2971 Bonus ------- None Cogmind --------- Core Integrity 495/550 Matter 300/300 Energy 160/160 System Corruption 1% Temperature Cool (0) Movement Walking (120) Location -8/Materials Parts ------- > --- POWER (1) -------- Light Nuclear Core > --- PROPULSION (6) --- Aluminum Leg Carbon-fiber Leg Flight Unit Flight Unit Flight Unit > --- UTILITY (2) ------ Improved Heat Sink Small Storage Unit > --- WEAPON (2) ------- Advanced Beam Rifle Heavy Assault Rifle > --- INVENTORY (8) ---- Light Deuterium Engine Cryofiber Web Advanced Weight Redist. System Advanced Targeting Computer Heavy Assault Rifle Improved Light Cannon Improved Light Cannon Mini Grenade Launcher Peak State ------------ > --- POWER ------------ Light Nuclear Core > --- PROPULSION ------- Aluminum Leg Carbon-fiber Leg Flight Unit Flight Unit Flight Unit > --- UTILITY ---------- Improved Heat Sink Small Storage Unit > --- WEAPON ----------- Advanced Beam Rifle Heavy Assault Rifle > --- INVENTORY -------- Light Deuterium Engine Cryofiber Web Advanced Weight Redist. System Advanced Targeting Computer Heavy Assault Rifle Improved Light Cannon Improved Light Cannon Mini Grenade Launcher [Rating: 22] Favorites ----------- Power Light Ion Engine Engine Light Ion Engine Power Core Light Nuclear Core Propulsion Flight Unit Treads Light Treads Leg Aluminum Leg Flight Unit Flight Unit Utility Small Storage Unit Device Tractor Beam Storage Small Storage Unit Weapon EM Shotgun Energy Gun EM Shotgun Ballistic Gun Heavy Assault Rifle Launcher Mini Grenade Launcher Special Weapon Plasma Cutter Build | -11 -10 -9 -8 ------- Run | Yrd Mat Mat Mat Slots Evolved 4 | . . 2 2 Power . | . . . . Propulsion 4 | . . 2 2 Utility . | . . . . Weapon . | . . . . Parts Attached 45 | 8 6 22 9 Power 6 | 1 1 2 2 Engine 5 | 1 1 2 1 Core 1 | . . . 1 Reactor . | . . . . Propulsion 16 | 4 . 9 3 Treads 2 | 2 . . . Leg 6 | 2 . 2 2 Wheel . | . . . . Hover . | . . . . Flight 8 | . . 7 1 Utility 12 | 2 3 5 2 Device 5 | 1 . 2 2 Storage 7 | 1 3 3 . Processor . | . . . . Hackware . | . . . . Protection . | . . . . Artifact . | . . . . Weapon 11 | 1 2 6 2 Energy Gun 6 | 1 2 2 1 Energy Cannon . | . . . . Ballistic Gun 3 | . . 2 1 Ballistic Cannon . | . . . . Launcher 1 | . . 1 . Special Weapon 1 | . . 1 . Impact Weapon . | . . . . Slashing Weapon . | . . . . Piercing Weapon . | . . . . Special Melee Weapon . | . . . . Unidentified Prototypes . | . . . . Parts Lost 6 | . . 3 3 Power 2 | . . 1 1 Propulsion 2 | . . . 2 Utility . | . . . . Weapon 2 | . . 2 . Highest Loss Streak 3 | . . 2 3 To Critical Strikes . | . . . . Average Backups 9 | 3 11 9 8 Power . | . 1 . . Propulsion 1 | 1 2 1 . Utility 3 | . 3 3 2 Weapon 3 | 1 3 3 4 Tool/Special . | . . . . Unused Backups 22 | . 5 7 10 Power 4 | . 2 . 2 Propulsion 2 | . . 2 . Utility 8 | . 1 5 2 Weapon 8 | . 2 . 6 Tool/Special . | . . . . Average Slot Usage (%) 93 | . 97 92 86 Engine 11 | . 14 10 8 Treads 11 | . 23 3 . Leg 3 | . 4 2 1 Flight 19 | . . 34 39 Device 9 | . 12 7 9 Storage 13 | . 15 12 9 Energy Gun 14 | . 25 5 3 Ballistic Gun 7 | . . 12 14 Peak Build Rating 22 | 6 11 13 22 Average Rating 11 | 4 9 11 18 On Entrance 7 | . 6 11 13 Avg Prop Armor Cover (%) 11 | . . 18 7 Naked Turns . | . . . . Heaviest Build 33 | 10 33 33 18 Greatest Support 40 | 40 40 40 34 Greatest Overweight (x) 7 | . . 7 1 Average Overweight (x) . | . . . . Largest Inventory Capacity 15 | 8 15 15 8 Average Capacity 11 | 5 13 9 8 Most Carried 15 | 6 15 15 8 Average Carried 9 | 3 11 9 7 Final Capacity 15 | 8 15 8 8 Final Carried 15 | 6 15 8 8 Class Distribution -------------------- 53% | Mutant 43% | Scavenger-Sprinter 3% | Sprinter Dominant Class ---------------- Mutant | -10/Materials Scavenger-Sprinter | -9/Materials Scavenger-Sprinter | -8/Materials Resources | -11 -10 -9 -8 ----------- Run | Yrd Mat Mat Mat Matter Collected 1232 | 268 332 394 238 Remotely 464 | 142 322 . . Salvage Created 1805 | 55 563 705 482 Parts 123 | 4 38 57 24 Haulers Intercepted . | . . . . Recyclers Shooed 3 | . 3 . . Parts Field Recycled . | . . . . Retrieved Matter . | . . . . Parts Self-Destructed . | . . . . Prevented . | . . . . Parts Restored . | . . . . Kills | -11 -10 -9 -8 ------- Run | Yrd Mat Mat Mat Combat Hostiles Destroyed 32 | . 8 14 10 Guns 29 | . 8 11 10 Cannons 2 | . . 2 . AOE 1 | . . 1 . Classes Destroyed 9 | 1 6 2 . Worker 7 | . 6 1 . Builder 3 | . 2 1 . Tunneler 1 | . . 1 . Recycler 6 | 1 2 2 1 Operator 1 | . 1 . . Watcher 3 | . 1 1 1 Swarmer 17 | . 6 8 3 Grunt 11 | . 2 2 7 Sentry 4 | . . 4 . Best Kill Streak 6 | 1 5 6 4 Combat Bots Only 6 | . 3 6 4 Max Kills in Single Turn 2 | 1 2 2 1 Gunslinging 1 | . . 1 . Exploded 1 | . . 1 . Melee . | . . . . Uniques/NPCs Destroyed . | . . . . Combat | -11 -10 -9 -8 -------- Run | Yrd Mat Mat Mat Hostile Shots Fired 154 | . 55 56 43 Missed 55 | . 18 19 18 Hits 99 | . 37 37 25 Projectile 99 | . 37 37 25 Critical Strikes 3 | . . 2 1 Damage Taken 1040 | . 306 380 354 Core 158 | . 29 74 55 Absorbed by Shields . | . . . . Regen/Repaired (Parts) 42 | . . 42 . Core Remaining (%) 89 | 100 88 81 . Volleys Fired 105 | 3 23 42 37 Largest 2 | 1 2 2 2 Hottest 90 | 40 90 90 84 Shots Fired 203 | 3 46 80 74 Gun 191 | 3 46 68 74 Cannon . | . . . . Launcher . | . . . . Special 12 | . . 12 . Kinetic 116 | . . 56 60 Thermal 29 | 3 . 12 14 Explosive . | . . . . Electromagnetic 58 | . 46 12 . Robot Hit Streak 39 | 2 8 10 39 Robot Miss Streak 5 | 1 4 4 5 Penetration Max . | . . . . Secondary Targets 4 | . . 2 2 Max Gunslinging Chain 1 | . . 1 1 Shots Hit Robots 145 | 2 33 49 61 Core Hits 84 | 2 30 28 24 Critical Kills . | . . . . Critical Parts Destroyed . | . . . . Critical Strikes . | . . . . Melee Attacks . | . . . . Impact . | . . . . Slashing . | . . . . Piercing . | . . . . Sneak Attacks . | . . . . Combat Hostiles . | . . . . Follow-up Attacks . | . . . . Damage Inflicted 2322 | 20 554 788 960 Guns 2099 | 20 450 669 960 Cannons . | . . . . Explosions 171 | . 104 67 . Melee . | . . . . Ramming . | . . . . Kinetic 1276 | . . 556 720 Thermal 483 | 20 104 119 240 Explosive . | . . . . Electromagnetic 563 | . 450 113 . Impact . | . . . . Slashing . | . . . . Piercing . | . . . . Highest Corruption 1 | . . . 1 Average Corruption 1 | . . . 1 Corruption Purged . | . . . . Corruption Blocked . | . . . . Effects 2 | . . . 2 Message Errors 1 | . . . 1 Data Loss (minor) 1 | . . . 1 Overload Shots . | . . . . Overflow Damage 19 | . . 19 . Projectiles . | . . . . Explosions 19 | . . 19 . Melee . | . . . . Knockbacks . | . . . . Impact . | . . . . Kinetic . | . . . . Secondary . | . . . . Self-Inflicted Damage 33 | . . 33 . Shots 1 | . . 1 . Rammed . | . . . . Targets Rammed . | . . . . Kicked . | . . . . Crushed . | . . . . Highest Temperature 120 | . 120 42 22 Average Temperature 32 | . 43 17 5 Received Heat Transfer 264 | . 12 54 198 Siege Activations . | . . . . Martial Activations . | . . . . Shielding Activations . | . . . . Robots Disrupted . | . . . . Combat Hostiles . | . . . . Robots Corrupted . | . . . . Combat Hostiles . | . . . . Parts Fried 1 | . 1 . . Impact Corruptions . | . . . . Robots Melted . | . . . . Combat Hostiles . | . . . . Parts Melted . | . . . . Heat Transferred 929 | 50 150 285 444 Parts Sabotaged . | . . . . Parts Stolen . | . . . . Parts Stripped . | . . . . Power Chain Reactions 4 | . 3 1 . Alert | -11 -10 -9 -8 ------- Run | Yrd Mat Mat Mat Maximum Alert Level 1 | . 1 1 1 Low Security (%) 70 | 100 97 54 24 Level 1 29 | . 2 45 75 Level 2 . | . . . . Level 3 . | . . . . Level 4 . | . . . . Level 5 . | . . . . High Security . | . . . . Max Security . | . . . . Peak Influence 358 | 5 215 276 358 Initial 100 | . . 70 100 Average 123 | . 46 176 254 Influence Increases 1231 | 5 324 484 418 Destroy 0b10 Robot/C 640 | . 160 280 200 Destroy 0b10 Robot/NC 105 | 5 60 30 10 Destroy Leader 136 | . 32 62 42 Successful Hack 23 | . 5 2 16 Disable Machine 45 | . . 30 15 Destroy Structure 12 | . 7 5 . Partial Spotted 75 | . . 30 45 Lose Combat Pursuer 195 | . 60 45 90 Influence Decreases 883 | 5 157 413 308 Entered New Map 235 | . . 97 138 Time Decay 588 | 5 157 286 140 Lost Part 60 | . . 30 30 Squads Dispatched 4 | . 1 1 2 Investigation 2 | . . 1 1 Extermination . | . . . . Reinforcement 2 | . 1 . 1 Assault . | . . . . Garrison . | . . . . Intercept . | . . . . Searches Triggered . | . . . . Construction Impeded . | . . . . Haulers Reinforced . | . . . . Active Scanning Responses . | . . . . Cargo Convoy Interrupts . | . . . . Stealth | -11 -10 -9 -8 --------- Run | Yrd Mat Mat Mat Distress Signals 3 | . . 1 2 Communications Jammed . | . . . . Distress Signals . | . . . . Times Spotted 56 | . 12 24 20 Peak Tracking Total 5 | . 3 5 5 Tactical Retreats 7 | . 2 2 3 Traps | -11 -10 -9 -8 ------- Run | Yrd Mat Mat Mat Traps Triggered 1 | . . . 1 Indirectly . | . . . . Trap Hack Attempts . | . . . . Triggered . | . . . . Disarmed . | . . . . Reprogrammed . | . . . . Reused . | . . . . Traps Extracted . | . . . . Installed . | . . . . Triggered . | . . . . Machines | -11 -10 -9 -8 ---------- Run | Yrd Mat Mat Mat Machines Disabled 3 | . . 2 1 Max in Single Turn 1 | . . 1 1 Machines Repaired . | . . . . Machines Dismantled 2 | . . 2 . Machines Sabotaged . | . . . . Overloaded Fab Kills . | . . . . Hacking | -11 -10 -9 -8 --------- Run | Yrd Mat Mat Mat Machines Accessed 13 | . 4 8 1 Terminals 8 | . 3 4 1 Fabricators . | . . . . Repair Stations 1 | . . 1 . Recycling Units 2 | . 1 1 . Scanalyzers 2 | . . 2 . Garrison Access . | . . . . Total Hacks 29 | . 7 19 3 Successful 18 | . 4 11 3 Failed 10 | . 3 7 . Catastrophic . | . . . . Database Lockouts 1 | . . 1 . Manual 1 | . . 1 . Terminals 17 | . 6 8 3 Fabricators . | . . . . Repair Stations 2 | . . 2 . Recycling Units 2 | . 1 1 . Scanalyzers 8 | . . 8 . Garrison Access . | . . . . Terminal Hacks 8 | . 3 2 3 Record 3 | . . . 3 Prototype ID Bank 4 | . 2 2 . Locate Traps 1 | . 1 . . Fabricator Hacks . | . . . . Repair Station Hacks 2 | . . 2 . Scan Component 1 | . . 1 . Repair 1 | . . 1 . Recycling Unit Hacks 2 | . 1 1 . Retrieve Components 2 | . 1 1 . Scanalyzer 6 | . . 6 . Retrieve Study 6 | . . 6 . Garrison Access Hacks . | . . . . Unauthorized Hacks . | . . . . Terminals . | . . . . Fabricators . | . . . . Repair Stations . | . . . . Recycling Units . | . . . . Scanalyzers . | . . . . Garrison Access . | . . . . Data Cores Recovered . | . . . . Used . | . . . . Hacking Detections 8 | . 2 5 1 Full Trace Events 4 | . . 3 1 Feedback Events . | . . . . Feedback Blocked . | . . . . Robot Schematics Acquired . | . . . . Robots Built . | . . . . Authchips . | . . . . Time . | . . . . Total Robot Build Rating . | . . . . Part Schematics Acquired . | . . . . Parts Built . | . . . . Authchips . | . . . . Time . | . . . . Total Part Build Rating . | . . . . Part Studies Acquired 6 | . . 6 . Parts Repaired 1 | . . 1 . Time 32 | . . 32 . Parts Recycled . | . . . . Recycled Matter . | . . . . Retrieved Matter . | . . . . Retrieved Components 15 | . 6 9 . Parts Scanalyzed . | . . . . Part Schematics Acquired . | . . . . Parts Damaged . | . . . . Bothacking | -11 -10 -9 -8 ------------ Run | Yrd Mat Mat Mat Used RIF Installer . | . . . . Robots Hacked . | . . . . Non-combat . | . . . . Combat . | . . . . Robot Hacks Applied . | . . . . Relay Couplers Released . | . . . . Fabnet Peak Effective % . | . . . . Robots Rewired . | . . . . Allies Hacked . | . . . . Hacks Repelled . | . . . . Allies | -11 -10 -9 -8 -------- Run | Yrd Mat Mat Mat Total Allies . | . . . . Largest Group . | . . . . Highest-Rated Group . | . . . . Highest-Rated Ally . | . . . . Total Orders . | . . . . Ally Attacks . | . . . . Total Damage . | . . . . Kills . | . . . . Allies Corrupted . | . . . . Allies Melted . | . . . . Intel | -11 -10 -9 -8 ------- Run | Yrd Mat Mat Mat Active Infowar (turns) . | . . . . Robot Analysis Total . | . . . . Derelict Logs Recovered . | . . . . Drone Launches . | . . . . Drone Recoveries . | . . . . Exploration | -11 -10 -9 -8 ------------- Run | Yrd Mat Mat Mat Turns Passed 1789 | 82 790 621 296 Spaces Moved 1572 | 44 452 769 307 Core 1 | 1 . . . Treads 407 | 15 353 39 . Legs 156 | 28 99 12 17 Wheels . | . . . . Hover . | . . . . Flight 1008 | . . 718 290 Fastest Speed 28 | 50 120 31 28 Average Speed 74 | 132 151 41 34 Slowest Speed 600 | 160 160 600 120 Overloaded Moves . | . . . . Propulsion Burnouts . | . . . . Robots Hopped 8 | . . 8 . Potential Cave-ins . | . . . . Cave-ins Triggered . | . . . . Exploration Rate (%) 31 | 3 49 53 21 Regions Visited 3 Branch Regions . Pre-discovered Areas . | . . . . Known Exits Taken . | . . . . Unknown Exits Taken 3 | 1 1 1 . Scrap Searched . | . . . . Spaces Dug . | . . . . Terrain Destroyed 9 | . 7 2 . Melee . | . . . . Projectile . | . . . . AOE 9 | . 7 2 . Terrain Rammed . | . . . . Walls Destroyed . | . . . . Machines Disabled . | . . . . Actions | -11 -10 -9 -8 --------- Run | Yrd Mat Mat Mat Total 1960 | 63 515 960 422 Wait 146 | . 9 81 56 Move 1553 | 43 451 752 307 Hop 8 | . . 8 . Pick Up 40 | 7 15 15 3 Fast Attach 24 | 5 2 10 7 Attach 9 | 3 . 6 . Detach 3 | 2 . 1 . Swap 21 | . 6 11 4 Drop 45 | . 9 28 8 Fire 105 | 3 23 42 37 Melee . | . . . . Ram . | . . . . Kick . | . . . . Crush . | . . . . Escape Stasis . | . . . . Rewire . | . . . . Trap . | . . . . Miscellaneous 6 | . . 6 . Route ------- -11/Scrapyard -10/Materials -9/Materials (discovered 2 exits: *Mat / [*Min]) -8/Materials History --------- Turn | Location | Event 15 | -11/Scrapyard | Discovered new exit (range 16) 83 | -11/Scrapyard | Entered Materials 313 | -10/Materials | Build established: Mutant 832 | -10/Materials | Discovered new exit (range 13) 873 | -10/Materials | Entered another Materials area 873 | -9/Materials | Evolved 2 slots: Propulsion x2 1240 | -9/Materials | Discovered new exit (range 12) 1258 | -9/Materials | Build established: Scavenger-Sprinter 1357 | -9/Materials | Repaired Hvy. Assault Rifle+ 1448 | -9/Materials | Discovered new exit (range 5) 1492 | -9/Materials | Central database locked down 1494 | -9/Materials | Entered another Materials area 1494 | -8/Materials | Evolved 2 slots: Propulsion x2 1790 | -8/Materials | Self-destructed Last Messages --------------- 01751_ K-01 Serf collects debris. 01753_ Flight Unit+ destroyed. 01754_ G-50 Soldier destroyed. 01754_ K-01 Serf collects debris. 01757_ Acquired 36 matter. 01759_ Acquired 3 matter. 01759_ K-01 Serf collects debris. 01760_ Lgt. Deuterium Engine destroyed. 01761_ G-47 Trooper destroyed. 01762_ Acquired 3 matter. 01765_ Acquired Carbon-fiber Leg. 01767_ Acquired 10 matter. 01767_ K-01 Serf collects debris. 01769_ Acquired Aluminum Leg. 01772_ Acquired 10 matter. 01774_ K-01 Serf collects debris. 01774_ Acquired Lgt. Nuclear Core. 01777_ K-01 Serf collects debris. 01777_ Acquired 10 matter. 01781_ K-01 Serf collects debris. Map ----- +----------------------------------------------------+ | ?????????##### #??????????????????????????????? | | ?????????????# #########??????????????????????? | | ?????????????# # ! #??????????????????????? | | ???????####### + #??????????????????????? | | ????# # # "T" #??????????????????????? | | ????# """ # #########??????????????????????? | | ????# """ # ############???????????????????? | | ????# """ # # ! * #???????????????????? | | ????# # # """ !* #???????????????????? | | ????# """ # # """ ! #???????????????????? | | ????# """ + + """ #???????????????????? | | ????# """ # # #???????????????????? | | ????# # # #???????????????????? | | ????########## ####+#######???????????????????? | | ??????# # # !* #???????????????????????? | | ??????# [# # ! #???????????????????????? | | ??????# =[#== # #???????????????????????? | | ??????# =%+ =!+ #???????????????????????? | | ??????# %#!*!#* #???????????????????????? | | ??????# *#= # #???????????????????????? | | ??############ ################### ?????????? | | ??# !# u m ?????????? | | ???" # #????????? | | ???T """ + t #????????? | | ???" """ # " #????????? | | ???? """ # """ @########???????????????? | | ????? ?## """ #????##############????? | | ????? ??# """ ###### #????? | | ???? ???# "" # #????? | | ????## ###???# """ #[ ]!! ! #????? | | ?????##??????#= "" %+% ]!! [ #????? | | ?????????????# "" # !! !#????? | | ?????????????# " ##############????? | | ?????????????# #! #???????????? | | ?????????????# # [ #???????????? | | ??????######## # #???????????? | | ??????#[ # # #???????????? | | ??????# # # """ #???????????? | | ??????# " ! # " " # """ #???????????? | | ??????# T # + """ #???????????? | | ??????# " = + # #???????????? | | ??????# # ############### """ #???????????? | | ??????######## ############### """ #???????????? | | ??????????# + """ #???????????? | | ??????????# ##### #???????????? | | ??????????#################???#######???????????? | | ????????????????????????????????????????????????? | | ????????????????????????????????????????????????? | | ????????????????????????????????????????????????? | | | +----------------------------------------------------+ Best States ------------- Heat Dissipation 53 Energy Generation 14 Energy Capacity 250 Matter Stores 400 Matter Capacity 400 Sight Range 16 Terrain Scan Density 10 Additional Mass Support 9 Evasion (%) 64 Recoil Reduction 2 Item Schematics ----------------- None Robot Schematics ------------------ None Fabricated ------------ Nothing Repaired ---------- Hvy. Assault Rifle | 63% | -9/Materials Studied --------- Flight Unit | -9/Materials | Hacked Hover Unit | -9/Materials | Hacked Rocket Launcher | -9/Materials | Hacked Hvy. Assault Rifle | -9/Materials | Hacked Lgt. Ion Engine | -9/Materials | Hacked Mni. Grenade Launcher | -9/Materials | Hacked Alien Tech Used ----------------- None Achievements -------------- None Challenges ------------ None Game ------ Seed AntimatterActuatorBeam Manual? 0 Play Time 00:33:00 Cumulative 9.5 hours Start 2026.04.21 @ 10:03:51 End 2026.04.21 @ 10:36:34 Sessions 1 Manual Loads 0 Difficulty Rogue Special Mode None Game No. 15 Rogue 14 Adventurer 1 Explorer 0 Win Type - Total 0 Types 0/0/0/0/0/0/0/0/0/0 Lore% 14 Gallery% 12 Achievement% 11 Wizard Run 0 Options --------- Layout 1 ASCII 0 Keyboard 0 Movement Mouse Keybinds 0 Fullscreen 1 Font 24/Smallcaps Map View 50x35 Zoom Use 0% Tactical HUD 1 Map Filters NONE Filters NONE Steam 1 RUN: 902e197a-953a-4b86-adf4-daa8c5302bea